[Event "US Masters 2024"]
[Site "Charlotte"]
[Date "2024.11.30"]
[Round "6.1"]
[White "Caruana, Fabiano"]
[Black "Theodorou, Nikolas"]
[Result "0-1"]
[ECO "A28"]
[WhiteElo "2805"]
[BlackElo "2612"]
[Annotator "TA"]
[PlyCount "98"]
[EventDate "2024.09.23"]
[EventType "swiss"]
[EventCountry "USA"]
[SourceTitle "playchess.com"]
[Source "ChessBase"]
[SourceQuality "1"]
[TimeControl "5400+30"]

{[%evp 33,98,-36,-34,-31,-11,-45,-31,-41,-18,-20,-4,-51,-39,-40,-45,-51,-57,-42,-39,-39,-55,-30,-14,-66,-58,-175,-177,-348,-323,-569,-308,-318,-320,-268,-127,-451,183,-1079,-1087,-1041,-1070,-1034,-1003,-1003,-220,-346,0,-1053,-1053,-1016,-1008,-949,-606,-942,-936,-873,-617,-734,-728,-1180,-1075,-1235,-1233,-1722,-1708,-5735,-5722]} 1. c4 {[%emt 0:00:53]} Nf6 {[%emt 0:00:18]} 2. Nc3 {[%emt 0:00:41]} e5 {[%emt 0:00:06]} 3. Nf3 {[%emt 0:00:24]} Nc6 {[%emt 0:00:07]} 4. a3 {[%emt 0:01:38]} d5 {[%emt 0:05:11]} 5. cxd5 {[%emt 0:00:12]} Nxd5 {[%emt 0:00:04]} 6. Qc2 {[%emt 0:00:20]} Nxc3 {[%emt 0:04:41]} 7. bxc3 {[%emt 0:00:42] A28: English Opening: Four Knights Variation.} Bd6 {[%emt 0:08:03]} 8. g3 {[%emt 0:01:14]} O-O {[%emt 0:10:14]} 9. Bg2 {[%emt 0:00:18]} Qe7 $5 {[%emt 0:03:22][%mdl 4] An interesting side line.} 10. d3 {[%emt 0:01:18]} Bg4 $1 $146 {[%emt 0:06:24][%mdl 8] A relevant novelty.} ({Predecessor:} 10... h6 11. O-O Na5 12. c4 c5 13. Nd2 f5 14. Nb1 Nc6 15. Nc3 Rb8 16. Rb1 Nd4 {1-0 Carlsen,M (2830)-Keymer,V (2726) Warsaw Superbet Blitz 2024 (5)}) 11. h3 {[%emt 0:03:38]} Bd7 {[%emt 0:01:04]} 12. O-O {[%emt 0:00:39]} b6 {[%emt 0:00:27]} 13. e4 {[%emt 0:09:30]} f6 {[%emt 0:05:45]} 14. d4 {[%emt 0:02:59]} Qf7 {[%emt 0:00:02]} 15. Be3 {[%emt 0:15:50]} Kh8 {[%emt 0:00:17]} 16. a4 {[%emt 0:01:41]} Rad8 {[%emt 0:01:25]} 17. Rfe1 {[%emt 0:05:05]} Na5 {[%emt 0:02:15]} 18. Nd2 {[%emt 0:01:45]} Qh5 {[%emt 0:05:43]} 19. g4 {[%emt 0:09:04]} Qf7 {[%emt 0:01:29]} 20. Qa2 {[%emt 0:04:32]} Be6 {[%emt 0:04:48]} 21. d5 {[%emt 0:00:19]} Bd7 {[%emt 0:00:55]} 22. Nc4 {[%emt 0:01:15]} (22. c4 $1 $11) 22... Nxc4 $15 {[%emt 0:00:05]} 23. Qxc4 {[%emt 0:00:03]} h5 {[%emt 0:00:04]} 24. Qe2 {[%emt 0:00:40]} g6 {[%emt 0:01:13]} 25. gxh5 {[%emt 0:17:10]} gxh5 {[%emt 0:00:37]} 26. Kh1 {[%emt 0:00:04]} Rg8 {[%emt 0:03:35]} 27. Rg1 {[%emt 0:03:16]} Qh7 {[%emt 0:00:06]} 28. Raf1 {[%emt 0:10:49]} (28. c4 $11) 28... Rg4 {[%emt 0:08:07]} 29. f3 {[%emt 0:00:51]} ({White should try} 29. Kh2 $15 Rg7 30. f4) 29... Rg3 $19 {[%emt 0:00:29]} 30. h4 $2 {[%emt 0:04:36]} (30. f4 {is a better defense.}) 30... Rdg8 $19 {[%emt 0:03:36]} (30... Bxa4 31. Bf2 Rg6 32. Bh3 Rxg1+ 33. Rxg1 $17) 31. Kh2 $2 {[%emt 0:00:03]} (31. Re1) 31... Bc5 {[%emt 0:16:05]} (31... Bxa4 32. Bf2 R3g6 33. Bh3 $15) 32. Bxc5 {[%emt 0:00:04]} bxc5 {[%emt 0:00:11]} 33. Qf2 {[%emt 0:01:48]} Qg6 {[%emt 0:02:04]} (33... Bxa4 34. Bh3 Rxg1 35. Rxg1 Rxg1 36. Qxg1 $11) (33... Qh6 $19 34. Qxg3 Rxg3 35. Kxg3 Qf4+ (35... Bxa4 36. Bh3 $11) 36. Kf2 Qd2+ (36... Bxa4 $2 37. Rb1 $19) (36... Qxh4+ $2 37. Ke3 $19) 37. Kg3 f5 (37... Bxa4 38. Bh3 $11) (37... Qf4+ $2 38. Kf2 $19)) 34. a5 $2 {[%emt 0:00:03][%mdl 8192]} (34. Rb1 $17) 34... f5 $4 {[%emt 0:03:56][%mdl 8192]} (34... Qh6 $19 {and all is fine. ( -> ...Qf4)} 35. Qxg3 Rxg3 36. Kxg3 Qf4+ 37. Kf2 Qd2+ (37... Qxh4+ $2 38. Ke3 $19) 38. Kg3 f5 (38... Qxc3 39. Bh3 $15) (38... Qf4+ $2 39. Kf2 $19)) 35. exf5 $4 {[%emt 0:00:03][%mdl 8192]} (35. Bh3 $18 Rxg1 36. Rxg1) 35... Qxf5 $19 {[%emt 0:00:19]} 36. Qxg3 {[%emt 0:00:04]} Rxg3 {[%emt 0:00:04]} 37. Kxg3 {[%emt 0:00:01]} Qf4+ {[%emt 0:00:29]} 38. Kf2 {[%emt 0:00:03]} Qd2+ $2 {[%emt 0:02:01]} (38... Qxh4+ 39. Ke3 Qf4+ 40. Kf2 Qd2+ 41. Kg3 Qf4+ (41... Qxd5 $2 42. Rh1 $19) (41... Qxc3 $2 42. Bh3 $19) 42. Kf2 e4) 39. Kg3 $19 {[%emt 0:00:04]} Qf4+ $2 {[%emt 0:00:03]} (39... Qxc3 40. Bh3 Bb5 41. Rf2 $15) (39... Bf5 40. Bh3 Qf4+ 41. Kg2 Qd2+ (41... Bd3 $2 42. Rf2 $19) 42. Kg3 Bd3) 40. Kf2 $19 {[%emt 0:00:01]} Qxh4+ {[%emt 0:00:04]} 41. Ke3 {[%emt 0:00:02]} Qf4+ {[%emt 0:00:17]} 42. Kf2 {[%emt 0:00:03]} Qd2+ {[%emt 0:03:12]} 43. Kg3 {[%emt 0:00:03]} h4+ {[%emt 0:00:07]} 44. Kh2 {[%emt 0:00:08]} Qf4+ {[%emt 0:00:28]} ({Less strong is} 44... Qxd5 45. Rd1 Qf7 46. f4 $17) 45. Kh1 {[%emt 0:00:03]} h3 {[%emt 0:00:03]} 46. Rb1 {[%emt 0:00:08]} Bf5 {[%emt 0:01:42]} 47. Rb8+ {[%emt 0:00:34]} Kh7 {[%emt 0:00:02]} 48. Rf8 {[%emt 0:00:03]} hxg2+ {[%emt 0:00:31]} 49. Rxg2 {[%emt 0:00:04]} Qc1+ {[%emt 0:00:12]} 0-1

[Event "US Masters 2024"]
[Site "Charlotte"]
[Date "2024.11.30"]
[Round "6.2"]
[White "Woodward, Andy"]
[Black "Donchenko, Alexander"]
[Result "1/2-1/2"]
[ECO "E11"]
[WhiteElo "2525"]
[BlackElo "2617"]
[Annotator "ChessBase"]
[PlyCount "38"]
[EventDate "2024.09.23"]
[EventType "swiss"]
[EventCountry "USA"]
[SourceTitle "playchess.com"]
[Source "ChessBase"]
[SourceQuality "1"]
[TimeControl "5400+30"]

1. d4 {[%emt 0:02:21]} Nf6 {[%emt 0:00:20]} 2. c4 {[%emt 0:00:30]} e6 {[%emt 0:00:09]} 3. g3 {[%emt 0:00:19]} d5 {[%emt 0:01:00]} 4. Bg2 {[%emt 0:00:59]} Bb4+ {[%emt 0:00:12]} 5. Bd2 {[%emt 0:00:10]} a5 {[%emt 0:00:12]} 6. Nf3 {[%emt 0:06:01]} O-O {[%emt 0:00:23]} 7. Qc2 {[%emt 0:01:11]} c5 {[%emt 0:00:15]} 8. cxd5 {[%emt 0:00:08]} cxd4 {[%emt 0:00:07]} 9. Nxd4 {[%emt 0:00:08]} Qb6 {[%emt 0:00:14]} 10. e3 {[%emt 0:00:17]} exd5 {[%emt 0:00:08]} 11. O-O {[%emt 0:00:07]} Nc6 {[%emt 0:00:12]} 12. Nxc6 {[%emt 0:00:07]} bxc6 {[%emt 0:00:05]} 13. Rc1 {[%emt 0:01:23]} Rb8 {[%emt 0:00:19]} 14. Nc3 {[%emt 0:01:24]} h5 {[%emt 0:00:31]} 15. a3 {[%emt 0:12:11]} Be7 {[%emt 0:00:31]} 16. Na4 {[%emt 0:04:31]} Qc7 {[%emt 0:02:00]} 17. b4 {[%emt 0:28:21]} axb4 {[%emt 0:02:42]} 18. Bxb4 {[%emt 0:02:08]} Bxb4 {[%emt 0:06:13]} 19. axb4 {[%emt 0:00:09]} Rxb4 {[%emt 0:00:07]} 1/2-1/2

[Event "US Masters 2024"]
[Site "Charlotte"]
[Date "2024.11.30"]
[Round "6.3"]
[White "Oparin, Grigoriy"]
[Black "Dudin, Gleb"]
[Result "1-0"]
[ECO "B31"]
[WhiteElo "2653"]
[BlackElo "2510"]
[Annotator "TA"]
[PlyCount "83"]
[EventDate "2024.09.23"]
[EventType "swiss"]
[EventCountry "USA"]
[SourceTitle "playchess.com"]
[Source "ChessBase"]
[SourceQuality "1"]
[TimeControl "5400+30"]

{[%evp 10,83,9,20,26,33,29,27,27,20,16,17,24,36,31,20,32,29,33,25,35,35,44,25,41,35,34,29,49,18,15,14,12,5,51,13,26,22,25,31,39,43,55,50,40,49,55,39,36,0,0,0,0,0,20,24,53,47,44,35,67,74,64,72,60,61,151,133,177,170,316,218,290,291,275,285]} 1. e4 {[%emt 0:00:01]} c5 {[%emt 0:18:18]} 2. Nf3 {[%emt 0:00:06]} Nc6 {[%emt 0:00:06]} 3. Bb5 {[%emt 0:00:10]} g6 {[%emt 0:00:08]} 4. O-O {[%emt 0:00:18]} Bg7 {[%emt 0:00:06]} 5. Bxc6 {[%emt 0:00:06]} bxc6 {[%emt 0:00:06]} 6. Re1 {[%emt 0:00:18]} Qc7 {[%emt 0:00:44]} 7. h3 {[%emt 0:00:48]} d6 {[%emt 0:01:08]} 8. Na3 {[%emt 0:01:07][%cal Bb1a3,Ba3c4,Bc4e5][%mdl 32]} Rb8 {[%emt 0:23:04] White has an edge.} 9. Qe2 {[%emt 0:01:52]} e5 {[%emt 0:03:57]} 10. Qd3 {[%emt 0:01:02]} Ne7 {[%emt 0:05:09]} 11. Nc4 {[%emt 0:00:26]} d5 {[%emt 0:00:11]} 12. exd5 {[%emt 0:00:22]} cxd5 {[%emt 0:00:07] Threatens to win with ...e4.} 13. Ncxe5 {[%emt 0:00:04] Qa3 is the strong threat.} O-O {[%emt 0:00:16]} 14. Qe2 {[%emt 0:01:17]} Nc6 {[%emt 0:20:18] [#] Prevents d4.} 15. d4 $1 {[%emt 0:15:42]} Nxd4 {[%emt 0:02:07]} 16. Nxd4 {[%emt 0:00:35]} cxd4 {[%emt 0:00:06]} 17. Bf4 {[%emt 0:00:13][%cal Oe5g6] And now Nxg6! would win.} Qb6 {[%emt 0:01:18]} (17... Rxb2 $2 18. Nxg6 d3 19. Qe3 (19. Nxf8 $2 dxe2 20. Bxc7 Rxc2 $19) (19. Qxd3 Qxc2 20. Ne7+ Kh8 $18) 19... Qxc2 20. Nxf8 $18) 18. Nd3 {[%emt 0:04:16]} Ra8 {[%emt 0:01:36]} 19. Qd2 {[%emt 0:02:47]} Bf5 {[%emt 0:01:46]} 20. Re2 {[%emt 0:02:00]} Rfc8 {[%emt 0:03:03]} 21. Rae1 {[%emt 0:03:51]} Bf8 {[%emt 0:00:41]} (21... Qb5 $11) 22. a3 {[%emt 0:01:37]} Qb5 {[%emt 0:01:40][%cal Oc8c2]} 23. Qd1 {[%emt 0:01:33]} a5 {[%emt 0:03:14]} 24. Be5 {[%emt 0:08:36]} Qc4 {[%emt 0:00:07]} 25. Qd2 {[%emt 0:01:53]} Qa4 {[%emt 0:09:43]} 26. g4 {[%emt 0:02:16]} Be4 {[%emt 0:01:20] [#]} 27. f3 $1 {[%emt 0:00:09]} Bxd3 {[%emt 0:00:26]} (27... Bxf3 $2 {too greedy.} 28. Qf4 Ra6 (28... Bxe2 29. Qf6 Bxd3 30. Qh8#) 29. Qxf3 $18) 28. cxd3 {[%emt 0:04:18]} Ra6 {[%emt 0:00:14]} 29. Qd1 {[%emt 0:06:44]} Qxd1 {[%emt 0:01:45]} 30. Rxd1 {[%emt 0:00:04]} Bg7 {[%emt 0:02:08] Repels Bxd4. Hoping for ...Re6.} 31. Bf4 {[%emt 0:04:03]} Rb6 {[%emt 0:00:33]} 32. Kf2 {[%emt 0:02:39]} h6 {[%emt 0:00:34]} 33. Rc1 {[%emt 0:03:56]} Rxc1 {[%emt 0:00:25]} 34. Bxc1 $14 {[%emt 0:00:01][%mdl 4096] Endgame. KRB-KRB} Rc6 {[%emt 0:00:34]} 35. Bd2 {[%emt 0:00:41]} a4 {[%emt 0:00:30]} 36. Re8+ {[%emt 0:00:25]} Kh7 {[%emt 0:00:05]} 37. Rb8 {[%emt 0:01:45]} Bf6 {[%emt 0:00:43]} (37... g5 $14) 38. Ke2 {[%emt 0:01:01]} Bh4 {[%emt 0:00:43]} 39. Rb4 {[%emt 0:01:01][%csl LRa4,LRd4]} Be7 {[%emt 0:00:30]} (39... Bf6 {keeps fighting.} 40. Kd1 (40. Rxa4 Rc2 $14) 40... Ra6) 40. Rb7 {[%emt 0:01:08]} ({Weaker is} 40. Rxd4 Rc2 $16) 40... Re6+ {[%emt 0:00:06] [#]} 41. Kd1 $1 {[%emt 0:00:05]} g5 {[%emt 0:00:52]} 42. Ra7 {[%emt 0:00:16] Weighted Error Value: White=0.08 (flawless) /Black=0.15 (very precise) .  Mistake:       	---       	Black=3      Inaccurate:     	White=4     	Black=4      OK:         	White=18    	Black=15     Best:        	White=1     	Black=1      Strong:       	White=1     	---} 1-0

[Event "US Masters 2024"]
[Site "Charlotte"]
[Date "2024.11.30"]
[Round "6.4"]
[White "Durarbayli, Vasif"]
[Black "Can, Isik"]
[Result "0-1"]
[ECO "C45"]
[WhiteElo "2626"]
[BlackElo "2508"]
[Annotator "TA"]
[PlyCount "50"]
[EventDate "2024.09.23"]
[EventType "swiss"]
[EventCountry "USA"]
[SourceTitle "playchess.com"]
[Source "ChessBase"]
[SourceQuality "1"]
[TimeControl "5400+30"]

{[%evp 14,50,-6,-17,-4,-14,0,-27,-14,-25,-38,-34,-35,-22,-26,-38,-44,-34,-16,-25,-20,-60,-21,-37,-13,-40,0,0,0,-533,-526,-574,-568,-572,-566,-658,-631,-1701,-1657]} 1. e4 {[%emt 1:31:00]} e5 {[%emt 0:10:45]} 2. Nf3 {[%emt 0:00:00]} Nc6 {[%emt 0:00:04]} 3. d4 {[%emt 0:00:00]} exd4 {[%emt 0:00:05]} 4. Nxd4 {[%emt 0:00:00]} Nf6 {[%emt 0:00:04]} 5. Nxc6 {[%emt 0:00:00]} bxc6 {[%emt 0:00:04]} 6. e5 {[%emt 0:00:00]} Qe7 {[%emt 0:00:05]} 7. Qe2 {[%emt 0:00:00]} Nd5 {[%emt 0:00:06]} 8. h4 {[%emt 0:00:00]} f6 {[%emt 0:00:12]} 9. c4 {[%emt 0:00:00]} Ba6 {[%emt 0:00:33]} 10. Rh3 {[%emt 0:00:00]} Nb6 {[%emt 0:00:13] Black has an edge.} (10... Qxe5 $2 11. Qxe5+ fxe5 12. cxd5 Bxf1 13. Kxf1 $18) 11. Nd2 {[%emt 0:00:00]} fxe5 {[%emt 0:00:15]} 12. Re3 {[%emt 0:00:00]} d6 {[%emt 0:00:02]} (12... Qxh4 13. Rxe5+ Kf7 14. Ra5 $11) 13. g3 {[%emt 0:00:00]} Qd7 {[%emt 0:00:06]} 14. Ra3 {[%emt 0:00:00]} Bc8 {[%emt 0:00:03]} 15. c5 {[%emt 0:00:00]} Nd5 {[%emt 0:18:56]} 16. Ne4 {[%emt 0:00:00]} Be7 {[%emt 0:00:30] With the idea ...0-0.} 17. Qh5+ {[%emt 0:00:00]} g6 {[%emt 0:00:01]} 18. Qd1 {[%emt 0:00:00]} O-O {[%emt 0:11:08]} 19. Bh6 {[%emt 0:00:00]} Rd8 {[%emt 0:00:02]} (19... Qf5 $5 20. Bg2 Re8 $11) 20. Bc4 {[%emt 0:00:00]} Qh3 {[%emt 0:12:19]} 21. Qf3 {[%emt 0:00:00][%mdl 8192] Prevents Qh1+.} (21. cxd6 $1 $11 {and White stays safe.} cxd6 22. Bxd5+ cxd5 23. Qxd5+ Be6 24. Qb7 Qh1+ 25. Kd2 Qxa1 26. Qxe7 Qxb2+ (26... Bxa2 27. Qg7#) 27. Ke1 Qa1+ (27... Qxa3 28. Qg7#) 28. Kd2 Qb2+ (28... Bxa2 29. Qg7#) 29. Ke1 Qb1+ (29... Qxa3 30. Qg7#) 30. Kd2 Qb2+ (30... Bxa2 31. Qg7#)) 21... Bg4 $19 {[%emt 0:04:15] Black is clearly winning.} (21... dxc5 $2 22. Nf6+ Kh8 23. Nxd5 (23. Bxd5 cxd5 24. Nxd5 Bb7 $11) 23... Rxd5 (23... cxd5 $2 24. Qf7 $18) 24. Bxd5 $18) 22. Nf6+ {[%emt 0:00:00]} Bxf6 {[%emt 0:00:08]} 23. Qxf6 {[%emt 0:00:00]} Rd7 {[%emt 0:00:04] [#] Inhibits Qg7+. And now ...Qh1+ would win.} ({Inferior is} 23... dxc5 24. Qg7#) 24. Rf3 {[%emt 0:00:00][%cal Of6f8] White wants to mate with Qf8+!} Qh1+ {[%emt 0:03:24]} 25. Ke2 {[%emt 0:00:00]} Qxa1 {[%emt 0:00:46] Weighted Error Value: White=0.83/Black=0.04 (flawless) .  Loses game:     	White=1     	---        Inaccurate:     	White=2     	Black=1      OK:         	White=8     	Black=10     Best:        	White=1     	Black=5} (25... Bxf3+ 26. Qxf3 Qxf3+ (26... Qxa1 27. Bxd5+ cxd5 28. Qxd5+ Rf7 29. Qxa8+) 27. Kxf3 $19) 0-1

[Event "US Masters 2024"]
[Site "Charlotte"]
[Date "2024.11.30"]
[Round "6.5"]
[White "Mitrabha, Guha"]
[Black "Antipov, Mikhail Al."]
[Result "1/2-1/2"]
[ECO "A37"]
[WhiteElo "2511"]
[BlackElo "2602"]
[Annotator "TA"]
[PlyCount "42"]
[EventDate "2024.09.23"]
[EventType "swiss"]
[EventCountry "USA"]
[SourceTitle "playchess.com"]
[Source "ChessBase"]
[SourceQuality "1"]
[TimeControl "5400+30"]

{[%evp 12,42,3,0,14,0,-8,-13,-19,-12,-9,-16,-18,-20,-21,-8,-8,-14,-6,-20,-7,0,-7,-23,-8,-10,-8,-9,0,0,0,0,0]} 1. Nf3 {[%emt 0:17:26]} c5 {[%emt 0:00:12]} 2. c4 {[%emt 0:00:10]} b6 {[%emt 0:00:05]} 3. g3 {[%emt 0:00:23]} Bb7 {[%emt 0:00:06]} 4. Bg2 {[%emt 0:00:04]} g6 {[%emt 0:00:16]} 5. Nc3 {[%emt 0:00:09]} Bg7 {[%emt 0:00:06]} 6. b3 {[%emt 0:00:15]} Nc6 {[%emt 0:04:33]} 7. O-O {[%emt 0:00:41]} Nd4 {[%emt 0:02:54]} 8. Nxd4 {[%emt 0:14:43]} Bxg2 {[%emt 0:00:07]} 9. Ne6 {[%emt 0:01:58]} dxe6 {[%emt 0:01:30]} 10. Kxg2 {[%emt 0:00:02]} h5 {[%emt 0:10:40]} 11. h4 {[%emt 0:07:05]} Qd7 {[%emt 0:00:52]} 12. Qc2 {[%emt 0:01:33]} Qc6+ {[%emt 0:01:47]} 13. f3 {[%emt 0:01:35]} Nh6 {[%emt 0:00:59]} 14. Bb2 {[%emt 0:01:13]} Nf5 {[%emt 0:01:03]} 15. Ne4 {[%emt 0:02:43]} f6 {[%emt 0:05:31]} 16. a3 {[%emt 0:03:21]} Kf7 {[%emt 0:01:15]} 17. b4 {[%emt 0:00:05]} Bh6 {[%emt 0:01:28]} 18. bxc5 {[%emt 0:01:26] The position is equal.} bxc5 {[%emt 0:00:07]} 19. Bc3 {[%emt 0:02:09]} Rad8 {[%emt 0:11:24]} 20. Qb2 {[%emt 0:02:33][%cal Rc3f6] Threatens to win with Bxf6!} Nd4 {[%emt 0:04:19]} 21. e3 {[%emt 0:08:02]} Rb8 {[%emt 0:07:09] An uneventful encounter.   Weighted Error Value: White=0.03 (flawless) /Black=0.03 (flawless) .  OK:         	White=8     	Black=5      Best:        	---       	Black=1} 1/2-1/2

[Event "US Masters 2024"]
[Site "Charlotte"]
[Date "2024.11.30"]
[Round "6.6"]
[White "Bok, Benjamin"]
[Black "Rodrigue-Lemieux, Shawn"]
[Result "1/2-1/2"]
[ECO "A18"]
[WhiteElo "2593"]
[BlackElo "2496"]
[Annotator "RC"]
[PlyCount "30"]
[EventDate "2024.09.23"]
[EventType "swiss"]
[EventCountry "USA"]
[SourceTitle "playchess.com"]
[Source "ChessBase"]
[SourceQuality "1"]
[TimeControl "5400+30"]

1. c4 {[%emt 0:05:33]} Nf6 {[%emt 0:12:29]} 2. Nc3 {[%emt 0:00:06]} e6 {[%emt 0:00:12]} 3. e4 {[%emt 0:00:09]} d5 {[%emt 0:00:09]} 4. cxd5 {[%emt 0:00:04]} exd5 {[%emt 0:00:11]} 5. e5 {[%emt 0:00:02]} d4 {[%emt 0:00:12]} 6. exf6 {[%emt 0:00:04]} dxc3 {[%emt 0:00:06]} 7. Bb5+ {[%emt 0:00:03]} c6 {[%emt 0:00:12]} 8. Qe2+ {[%emt 0:00:05]} Be6 {[%emt 0:00:17]} 9. Bc4 {[%emt 0:00:05]} Qxf6 {[%emt 0:00:12]} 10. dxc3 {[%emt 0:00:05]} Bc5 {[%emt 0:00:09]} 11. Nh3 {[%emt 0:00:04]} O-O {[%emt 0:06:03]} 12. Bxe6 {[%emt 0:00:43]} Qxe6 {[%emt 0:08:59]} 13. Qxe6 {[%emt 0:00:08]} fxe6 {[%emt 0:00:05]} 14. Ke2 {[%emt 0:08:14]} Nd7 {[%emt 0:03:03]} 15. Bg5 {[%emt 0:44:36]} h6 {[%emt 0:06:29]} 1/2-1/2

[Event "US Masters 2024"]
[Site "Charlotte"]
[Date "2024.11.30"]
[Round "6.7"]
[White "Zhou, Jianchao"]
[Black "Samant Aditya S"]
[Result "1/2-1/2"]
[ECO "D30"]
[WhiteElo "2581"]
[BlackElo "2478"]
[Annotator "ChessBase"]
[PlyCount "43"]
[EventDate "2024.09.23"]
[EventType "swiss"]
[EventCountry "USA"]
[SourceTitle "playchess.com"]
[Source "ChessBase"]
[SourceQuality "1"]
[TimeControl "5400+30"]

1. d4 {[%emt 0:00:20]} Nf6 {[%emt 0:04:34]} 2. c4 {[%emt 0:00:06]} e6 {[%emt 0:00:05]} 3. Nf3 {[%emt 0:00:16]} d5 {[%emt 0:00:19]} 4. e3 {[%emt 0:00:51]} Be7 {[%emt 0:00:13]} 5. b3 {[%emt 0:00:17]} O-O {[%emt 0:00:49]} 6. Bb2 {[%emt 0:00:23]} c5 {[%emt 0:08:56]} 7. Bd3 {[%emt 0:01:53]} cxd4 {[%emt 0:03:51]} 8. exd4 {[%emt 0:00:10]} b6 {[%emt 0:00:08]} 9. O-O {[%emt 0:00:28]} Bb7 {[%emt 0:00:11]} 10. Nbd2 {[%emt 0:00:55]} Nbd7 {[%emt 0:07:12]} 11. Qe2 {[%emt 0:00:41]} Re8 {[%emt 0:01:42]} 12. Rfe1 {[%emt 0:01:26]} Nf8 {[%emt 0:01:53]} 13. Ne5 {[%emt 0:02:14]} Ng6 {[%emt 0:01:29]} 14. Nxg6 {[%emt 0:00:46]} hxg6 {[%emt 0:00:21]} 15. Nf3 {[%emt 0:00:44]} Bd6 {[%emt 0:03:49]} 16. Rac1 {[%emt 0:03:39]} Rc8 {[%emt 0:01:01]} 17. Ne5 {[%emt 0:01:00]} Qe7 {[%emt 0:06:27]} 18. Qe3 {[%emt 0:01:29]} Ne4 {[%emt 0:03:58]} 19. Nf3 {[%emt 0:06:30]} Nf6 {[%emt 0:02:56]} 20. Ne5 {[%emt 0:00:07]} Ne4 {[%emt 0:00:18]} 21. Nf3 {[%emt 0:00:20]} Nf6 {[%emt 0:00:08]} 22. Ne5 {[%emt 0:00:46]} 1/2-1/2